bitfinex/quotes_SOLUSD_20251207
["timestamp","ask_amount","ask_price","bid_price","bid_amount"]
[1765118456409,16.77802227,128.57,128.51,27.92473284]
[1765118456609,0.66,128.56,128.51,27.92473284]
[1765118456910,0.66,128.56,128.51,7.78099384]
[1765118457311,0.66,128.56,128.51,8.50099384]
[1765118457531,8.43872491,128.56,128.51,8.50099384]
[1765118458052,0.66,128.55,128.51,7.78099384]
[1765118458335,0.66,128.55,128.49,7.78254624]
[1765118458716,8.80994492,128.54,128.5,7.78209909]
[1765118459016,9.0,128.53,128.5,7.78209909]
[1765118459225,9.66,128.53,128.5,7.78209909]
[1765118459421,9.0,128.53,128.51,8.50148648]
[1765118459625,9.0,128.54,128.51,8.50148648]
[1765118459826,9.0,128.54,128.52,0.72]
[1765118460036,9.46994492,128.56,128.51,8.50148648]
[1765118460343,9.66,128.55,128.51,7.78148648]
[1765118460510,8.80994492,128.54,128.49,7.78226993]
[1765118460716,9.46994492,128.54,128.48,20.17768182]
[1765118461146,9.0,128.55,128.49,20.17593172]
[1765118461440,9.66,128.55,128.51,7.78115562]
[1765118461629,9.0,128.55,128.5,8.50210116]
[1765118461808,9.0,128.55,128.51,19.453739]
[1765118462016,9.0,128.57,128.51,20.173739]
[1765118462223,9.0,128.57,128.52,0.72]
[1765118462425,9.66,128.57,128.52,0.72]
[1765118463644,9.66,128.57,128.53,7.78028475]
[1765118463939,9.46994492,128.56,128.49,20.1767478]
[1765118464140,9.46994492,128.56,128.5,0.72]
[1765118464337,0.66,128.55,128.48,0.72]
[1765118465332,7.77967947,128.54,128.49,7.78257458]
[1765118465537,17.80994492,128.53,128.45,20.18232017]
[1765118465733,18.46994492,128.53,128.48,7.78322708]
[1765118466132,0.66,128.52,128.48,7.78322708]
[1765118466716,0.66,128.52,128.47,7.78391842]
[1765118466936,25.5906486,128.53,128.47,27.24371448]
[1765118466937,9.0,128.53,128.47,27.24371448]
[1765118467149,9.66,128.53,128.48,0.72]
[1765118467544,0.2,128.58,128.48,0.72]
[1765118467752,0.2,128.58,128.5,16.308864]
[1765118468040,0.2,128.58,128.5,0.77821011]
[1765118468220,8.63733045,128.58,128.51,0.72]
[1765118468422,16.308864,128.57,128.49,0.72]
[1765118468623,17.78994492,128.56,128.5,7.78210116]
[1765118468841,26.22856603,128.56,128.5,7.78210116]
[1765118469042,0.66,128.55,128.49,7.7825963]
[1765118469327,0.66,128.55,128.49,8.5025963]
[1765118469538,8.80994492,128.54,128.49,7.7825963]
[1765118470054,0.66,128.53,128.49,7.7825963]
[1765118470435,0.66,128.53,128.49,8.5025963]
[1765118470846,36.2047941,128.56,128.49,8.5025963]
[1765118470847,8.43942438,128.55,128.49,8.5025963]
[1765118471651,8.43942438,128.55,128.49,27.95936336]
[1765118471828,0.66,128.54,128.49,27.95936336]
[1765118472226,9.46994492,128.54,128.49,8.5025963]
[1765118472441,8.98,128.53,128.5,0.72]
[1765118473160,8.98,128.53,128.5,8.50155807]
[1765118473461,8.80994492,128.56,128.5,27.95681098]
[1765118473638,0.2,128.58,128.51,17.028864]
[1765118473842,0.2,128.58,128.55,16.308864]
[1765118474354,0.2,128.58,128.56,0.72]
[1765118475135,0.2,128.58,128.57,7.77786419]
[1765118475578,0.2,128.58,128.57,8.49786419]
[1765118476440,0.03,128.58,128.57,8.49786419]
[1765118479868,0.2,128.67,128.6,16.308864]
[1765118480051,1e-08,128.67,128.64,16.308864]
[1765118480599,1e-08,128.67,128.65,0.7]
[1765118481341,1e-08,128.67,128.66,7.77242344]
[1765118481865,1e-08,128.67,128.66,8.47242344]
[1765118483346,1e-08,128.67,128.64,0.7]
[1765118483574,1e-08,128.67,128.65,0.7]
[1765118484972,1e-08,128.67,128.66,7.77242344]
[1765118485439,1e-08,128.67,128.66,8.47242344]
[1765118486854,1e-08,128.67,128.64,27.20636405]
[1765118487275,1e-08,128.67,128.65,0.7]
[1765118488750,1e-08,128.67,128.64,27.20636405]
[1765118489055,1e-08,128.67,128.64,27.90636405]
[1765118489251,1e-08,128.67,128.64,27.20636405]
[1765118489441,0.66000001,128.67,128.64,27.20636405]
[1765118490064,1e-08,128.67,128.64,27.20636405]
[1765118490381,1e-08,128.67,128.64,27.90636405]
[1765118491078,1e-08,128.67,128.65,0.7]
[1765118492555,1e-08,128.67,128.66,7.77242344]
[1765118493865,0.66000001,128.67,128.66,7.77242344]
[1765118494357,8.80994492,128.66,128.58,0.7]
[1765118494562,8.80994492,128.66,128.6,19.43982116]
[1765118494880,0.66,128.65,128.6,19.43982116]
[1765118496965,0.66,128.65,128.6,20.13982116]
[1765118497158,0.66,128.65,128.6,19.43982116]
[1765118497364,1e-08,128.67,128.61,0.7]
[1765118497564,0.66000001,128.67,128.61,0.7]
[1765118498167,0.66000001,128.67,128.6,19.43982116]
[1765118498672,0.66000001,128.67,128.6,27.21587092]
[1765118499075,0.66000001,128.67,128.61,0.7]
[1765118499884,0.66000001,128.67,128.6,66.09611975]
[1765118500181,0.66000001,128.67,128.6,66.79611975]
[1765118500388,0.66000001,128.67,128.61,0.7]
[1765118500796,0.66000001,128.67,128.58,16.308864]
[1765118500797,0.66000001,128.67,128.62,7.77484061]
[1765118501386,0.66000001,128.67,128.62,27.21194214]
[1765118501579,9.62000001,128.67,128.62,27.91194214]
[1765118501968,0.66,128.66,128.62,27.21194214]
[1765118502285,9.46994492,128.66,128.62,7.77484061]
[1765118502789,0.66,128.66,128.62,0.7]
[1765118502992,0.66,128.66,128.6,27.91484279]
[1765118503364,0.66,128.66,128.61,0.7]
[1765118503564,8.96000001,128.67,128.61,0.7]
[1765118503565,1e-08,128.67,128.61,0.7]
[1765118504784,1e-08,128.67,128.62,66.08614521]
[1765118505173,0.66000001,128.67,128.63,0.7]
[1765118505786,0.66000001,128.67,128.64,27.20771144]
[1765118506167,1e-08,128.67,128.64,27.20771144]
[1765118506475,0.66000001,128.67,128.64,27.20771144]
[1765118506894,0.66000001,128.67,128.64,7.77363184]
[1765118507895,0.66000001,128.67,128.62,27.21137918]
[1765118508100,0.66000001,128.67,128.62,27.91137918]
[1765118509496,0.66000001,128.67,128.63,0.7]
[1765118509792,0.66000001,128.67,128.62,27.91137918]
[1765118511704,0.66000001,128.67,128.63,0.69]
[1765118512199,0.66000001,128.67,128.64,7.77363184]
[1765118514183,8.80994492,128.66,128.59,66.79105412]
[1765118514401,8.80994492,128.66,128.59,27.21829068]
[1765118514603,16.308864,128.63,128.59,7.77665448]
[1765118514790,18.41994492,128.62,128.59,7.77665448]
[1765118515184,0.67,128.61,128.59,7.77665448]
[1765118515580,0.67,128.61,128.57,27.22170505]
[1765118516208,0.67,128.64,128.58,0.69]
[1765118517276,8.94,128.65,128.58,0.69]
[1765118517481,16.30886401,128.67,128.58,0.69]
[1765118517482,1e-08,128.67,128.58,9.63]
[1765118517703,9.47994492,128.66,128.59,66.10156309]
[1765118517900,9.47994492,128.66,128.59,66.79156309]
[1765118518120,0.67,128.66,128.6,0.69]
[1765118518708,0.67,128.65,128.59,66.10156309]
[1765118518903,0.67,128.65,128.59,66.79156309]
[1765118520308,8.80994492,128.64,128.59,27.21829068]
[1765118520715,8.80994492,128.62,128.59,7.77665448]
[1765118521008,8.94,128.61,128.59,7.77665448]
[1765118521218,9.61,128.61,128.59,7.77665448]
[1765118521378,0.67,128.6,128.59,7.77665448]
[1765118521885,0.67,128.6,128.57,19.44400689]
[1765118522907,8.94,128.61,128.57,19.44400689]
[1765118523085,9.63,128.61,128.57,19.44400689]
[1765118523287,0.69,128.6,128.57,19.44400689]
[1765118523508,0.69,128.6,128.56,7.77846919]
[1765118523805,0.69,128.6,128.55,27.22651007]
[1765118524019,8.80994492,128.59,128.55,7.77907429]
[1765118524201,16.308864,128.56,128.52,7.78047504]
[1765118524514,8.94,128.55,128.52,7.78047504]
[1765118524712,9.63,128.55,128.52,7.78047504]
[1765118525015,8.94,128.55,128.53,7.78028475]
[1765118525218,8.94,128.59,128.54,46.67807685]
[1765118525412,9.63,128.59,128.54,46.67807685]
[1765118525587,9.63,128.59,128.54,47.35807685]
[1765118525789,0.69,128.58,128.54,27.22887816]
[1765118526193,8.80994492,128.57,128.54,7.77967947]
[1765118526611,0.69,128.56,128.54,7.77967947]
[1765118527904,0.69,128.56,128.52,19.45172136]
[1765118528212,8.80994492,128.55,128.51,7.7814956]
[1765118528518,8.80994492,128.55,128.51,27.2352346]
[1765118528716,0.69,128.54,128.51,27.2352346]
[1765118528908,8.94,128.53,128.51,27.2352346]
[1765118529220,8.94,128.53,128.51,7.7814956]
[1765118529519,8.94,128.56,128.51,8.4614956]
[1765118529809,8.94,128.56,128.51,27.2352346]
[1765118529810,9.63,128.56,128.51,27.2352346]
[1765118530021,0.69,128.55,128.51,27.2352346]
[1765118530924,9.49994492,128.55,128.51,27.2352346]
[1765118531401,0.69,128.54,128.51,27.2352346]
[1765118532020,0.69,128.54,128.51,19.453739]
[1765118532815,7.77719267,128.59,128.51,19.453739]
[1765118532997,0.69,128.56,128.51,20.133739]
[1765118533911,0.69,128.56,128.51,27.9152346]
[1765118534694,0.69,128.56,128.51,27.2352346]
[1765118535404,0.69,128.56,128.51,0.68]
[1765118535906,0.69,128.56,128.52,0.68]
[1765118536223,8.94,128.56,128.52,0.68]
[1765118536391,9.63,128.56,128.52,0.68]
[1765118537201,8.94,128.56,128.52,0.68]
[1765118537409,9.63,128.56,128.52,0.68]
[1765118537714,8.94,128.57,128.53,27.23099664]
[1765118538100,8.94,128.57,128.53,27.91099664]
[1765118539098,9.63,128.57,128.53,27.91099664]
[1765118541022,9.52994492,128.56,128.53,27.23099664]
[1765118541320,9.52994492,128.56,128.53,7.78028475]
[1765118541500,0.72,128.55,128.53,7.78028475]
[1765118542515,8.94,128.56,128.54,0.7]
[1765118543305,0.72,128.58,128.55,27.22676001]
[1765118543503,8.94,128.57,128.55,27.22676001]
[1765118544014,0.72,128.6,128.56,0.7]
[1765118544218,8.94,128.59,128.56,0.7]
[1765118544413,8.94,128.59,128.55,27.22676001]
[1765118544627,9.66,128.59,128.55,27.92676001]
[1765118545534,0.72,128.59,128.55,27.92676001]
[1765118545703,8.92,128.59,128.55,27.92676001]
[1765118545901,8.80994492,128.55,128.48,0.7]
[1765118546097,16.308864,128.56,128.48,7.78331257]
[1765118546098,8.80994492,128.53,128.48,7.78331257]
[1765118546318,8.80994492,128.53,128.47,7.88373206]
[1765118546520,0.72,128.52,128.47,7.88373206]
[1765118546726,8.80994492,128.51,128.47,27.34352812]
[1765118546932,8.92,128.5,128.47,27.34352812]
[1765118547298,9.52994492,128.51,128.47,27.34352812]
[1765118547526,9.64,128.5,128.47,19.55979606]
[1765118547715,9.64,128.5,128.47,0.1]
[1765118547914,8.92,128.5,128.47,0.1]
[1765118548216,9.64,128.5,128.47,0.1]
[1765118548436,0.72,128.49,128.47,0.1]
[1765118548723,8.92,128.48,128.47,0.1]
[1765118550535,8.80994492,128.51,128.47,0.1]
[1765118550536,0.72,128.51,128.47,0.1]
[1765118550724,8.92,128.51,128.47,0.8]
[1765118550918,9.64,128.51,128.47,0.8]
[1765118551228,9.64,128.51,128.47,0.1]
[1765118551429,0.72,128.5,128.47,0.1]
[1765118551934,8.80994492,128.49,128.47,0.1]
[1765118552340,0.72,128.48,128.47,0.1]
[1765118553139,17.31325749,128.48,128.47,0.1]
[1765118553719,33.62212149,128.48,128.47,0.1]
[1765118554239,42.54212149,128.48,128.47,0.1]
[1765118556532,8.80994492,128.44,128.4,7.88816199]
[1765118556733,9.64,128.43,128.4,7.88816199]
[1765118557119,8.92,128.43,128.4,0.1]
[1765118557427,9.52994492,128.42,128.4,0.1]
[1765118557627,8.80994492,128.42,128.4,0.1]
[1765118557834,9.52994492,128.42,128.4,0.1]
[1765118559419,8.92,128.41,128.4,0.8]
[1765118560742,8.92,128.41,128.4,0.1]
[1765118560743,18.44994492,128.41,128.4,0.1]
[1765118560934,26.2375004,128.41,128.4,0.1]
[1765118565353,17.72994492,128.41,128.4,0.1]
[1765118565719,16.308864,128.42,128.4,0.1]
[1765118565925,8.92,128.41,128.4,0.1]
[1765118566236,17.72994492,128.41,128.4,0.1]
[1765118566545,75.0,128.46,128.4,0.1]
[1765118566546,0.72,128.49,128.41,7.78755548]
[1765118566744,0.72,128.49,128.41,66.19422162]
[1765118566923,8.92,128.48,128.42,0.7]
[1765118567924,7.86587565,128.48,128.42,0.7]
[1765118568356,7.86587565,128.48,128.43,27.25219963]
[1765118568853,7.86587565,128.48,128.44,0.7]
[1765118569240,9.52994492,128.47,128.43,7.78634275]
[1765118569554,8.80994492,128.47,128.43,8.48634275]
[1765118569848,9.52994492,128.47,128.43,8.48634275]
[1765118571555,8.92,128.46,128.44,0.7]
[1765118572131,7.78291777,128.49,128.44,0.7]
[1765118572132,8.80994492,128.49,128.44,0.7]
[1765118572458,8.92,128.47,128.44,0.7]
[1765118572837,8.92,128.47,128.45,7.7851304]
[1765118573241,8.92,128.47,128.46,0.7]
[1765118574744,8.92,128.47,128.46,8.48452436]
[1765118575331,8.92,128.47,128.46,7.78452436]
[1765118576236,8.92,128.47,128.45,0.66]
[1765118576430,8.92,128.47,128.43,0.66]
[1765118576633,8.80994492,128.46,128.43,0.66]
[1765118577256,8.48272166,128.49,128.43,0.66]
[1765118577427,17.72994492,128.48,128.43,0.66]
[1765118578432,17.72994492,128.48,128.44,7.78573653]
[1765118578937,17.72994492,128.48,128.44,27.25007785]
[1765118579137,8.92,128.48,128.44,27.25007785]
[1765118579343,8.92,128.48,128.45,0.66]
[1765118579638,8.92,128.47,128.45,0.66]
[1765118580254,8.92,128.47,128.44,27.25007785]
[1765118580449,8.92,128.47,128.44,7.78573653]
[1765118580675,9.62,128.47,128.44,7.78573653]
[1765118581861,9.50994492,128.46,128.43,7.7862954]
[1765118582071,9.50994492,128.46,128.44,7.78571719]
[1765118582246,8.80994492,128.52,128.44,7.78571719]
[1765118582447,9.62,128.51,128.42,7.78694907]
[1765118582656,32.90091008,128.5,128.42,8.44694907]
[1765118582853,33.60091008,128.5,128.42,8.44694907]
[1765118583156,8.80994492,128.48,128.41,7.78736876]
[1765118583350,8.80994492,128.48,128.41,8.44736876]
[1765118583351,8.92,128.47,128.41,8.44736876]
[1765118583552,9.62,128.47,128.41,8.44736876]
[1765118584150,8.92,128.47,128.41,8.44736876]
[1765118584343,8.92,128.47,128.41,7.78736876]
[1765118584344,9.50994492,128.46,128.41,7.78736876]
[1765118584654,9.50994492,128.46,128.4,7.88816199]
[1765118584655,8.80994492,128.44,128.4,7.88816199]
[1765118584862,8.92,128.43,128.4,7.88816199]
[1765118585056,8.92,128.43,128.4,0.1]
[1765118585057,8.80994492,128.42,128.4,0.1]
[1765118585458,9.50994492,128.41,128.4,0.1]
[1765118586969,17.2975004,128.41,128.4,0.1]
[1765118588355,26.1975004,128.41,128.4,0.1]
[1765118589974,17.2975004,128.41,128.4,0.1]
[1765118590149,26.1975004,128.41,128.4,0.1]
[1765118590353,42.5063644,128.41,128.4,0.1]
[1765118593769,33.6063644,128.41,128.4,0.1]
[1765118593949,41.8063644,128.41,128.4,0.1]
[1765118594756,42.5063644,128.41,128.4,0.1]
[1765118595548,8.80994492,128.4,128.32,0.76]
[1765118595753,9.50994492,128.4,128.32,0.76]
[1765118595954,8.80994492,128.38,128.32,0.76]
[1765118596152,8.80994492,128.36,128.32,0.76]
[1765118596573,8.9,128.35,128.32,0.76]
[1765118596878,8.9,128.37,128.32,0.76]
[1765118597373,8.9,128.37,128.33,27.27343567]
[1765118597778,8.9,128.37,128.34,0.66]
[1765118598956,8.9,128.41,128.34,0.66]
[1765118599369,8.9,128.41,128.35,27.26918581]
[1765118599756,8.9,128.41,128.36,0.66]
[1765118600861,7.78521343,128.45,128.36,0.66]
[1765118601061,17.70994492,128.44,128.36,0.66]
[1765118601359,17.70994492,128.44,128.37,27.26493728]
[1765118602061,8.9,128.44,128.38,0.69]
[1765118602466,57.60613142,128.52,128.4,16.308864]
[1765118602467,18.7,128.52,128.4,16.308864]
[1765118602780,17.36156445,128.51,128.4,16.308864]
[1765118602953,17.36156445,128.51,128.41,0.69]
[1765118603156,8.80994492,128.46,128.41,0.69]
[1765118603354,8.9,128.45,128.41,8.47699877]
[1765118603767,8.9,128.45,128.42,0.69]
[1765118604681,25.79880892,128.44,128.36,0.69]
[1765118604981,8.80994492,128.4,128.35,7.79061034]
[1765118605181,8.80994492,128.38,128.34,7.79159502]
[1765118605382,16.59961932,128.38,128.33,0.69]
[1765118605686,0.68,128.38,128.33,8.4823063]
[1765118605854,8.80994492,128.38,128.34,0.69]
[1765118606059,8.9,128.37,128.34,0.69]
[1765118606864,8.9,128.37,128.33,27.27333178]
[1765118607152,8.9,128.37,128.34,0.69]
[1765118607563,8.80994492,128.36,128.33,7.7923063]
[1765118607766,9.48994492,128.36,128.32,7.89291627]
[1765118607961,8.80994492,128.36,128.32,0.1]
[1765118608178,9.48994492,128.36,128.32,0.1]
[1765118608965,17.2805583,128.36,128.32,0.1]
[1765118609880,17.28063544,128.36,128.32,0.79]
[1765118610880,8.9,128.35,128.32,0.79]
[1765118611085,8.80994492,128.34,128.32,0.1]
[1765118611287,9.48994492,128.34,128.32,0.1]
[1765118611456,8.9,128.33,128.32,0.1]
[1765118611657,0.68,128.39,128.33,0.69]
[1765118611886,17.70994492,128.38,128.33,0.69]
[1765118612390,8.9,128.38,128.33,0.69]
[1765118612684,7.78701941,128.42,128.33,0.69]
[1765118612978,17.70994492,128.41,128.34,27.27131057]
[1765118613386,0.68,128.45,128.35,0.69]
[1765118613589,8.9,128.44,128.35,0.69]
[1765118613765,0.68,128.48,128.37,16.308864]
[1765118613968,8.9,128.47,128.37,16.308864]
[1765118614164,8.9,128.47,128.38,0.69]
[1765118614765,8.9,128.47,128.39,27.26069007]
[1765118614972,16.68409328,128.47,128.39,27.26069007]
[1765118615174,8.9,128.47,128.4,0.69]
[1765118615375,8.9,128.47,128.4,16.998864]
[1765118615774,8.9,128.47,128.42,16.308864]
[1765118616091,18.7,128.52,128.42,16.308864]
[1765118616273,8.9,128.51,128.43,0.69]
[1765118616781,8.9,128.51,128.44,27.25007785]
[1765118617296,8.9,128.51,128.45,0.69]
[1765118617789,8.9,128.51,128.44,27.25007785]
[1765118617790,9.48994492,128.5,128.44,27.25007785]
[1765118617988,8.80994492,128.48,128.44,7.78573653]
[1765118618171,8.9,128.47,128.44,7.78573653]
[1765118618369,8.9,128.47,128.44,8.47573653]
[1765118618565,8.9,128.47,128.43,7.78618653]
[1765118618771,0.68,128.46,128.43,7.78618653]
[1765118618972,0.68,128.46,128.42,7.78694471]
[1765118619768,8.80994492,128.46,128.42,7.78694471]
[1765118619982,9.48994492,128.46,128.42,7.78694471]
[1765118620204,9.48994492,128.46,128.42,8.47694471]
[1765118620397,8.9,128.47,128.43,0.69]
[1765118620592,16.308864,128.5,128.43,0.69]
[1765118620886,8.9,128.5,128.43,0.69]
[1765118621089,8.9,128.5,128.44,27.25007785]
[1765118621588,8.9,128.5,128.45,0.69]
[1765118621971,9.58,128.5,128.45,0.69]
[1765118622176,9.48994492,128.49,128.44,7.78573653]
[1765118622591,9.48994492,128.49,128.44,8.47573653]
[1765118623080,0.68,128.48,128.44,8.47573653]
[1765118623570,8.80994492,128.47,128.43,7.78621791]
[1765118623770,8.88,128.46,128.43,7.78621791]
[1765118624185,9.56,128.46,128.43,7.78621791]
[1765118624386,8.88,128.46,128.43,7.78621791]
[1765118624589,8.88,128.46,128.43,8.4763125]
[1765118624792,8.88,128.46,128.43,7.7863125]
[1765118625294,9.56,128.46,128.42,7.78694907]
[1765118626097,8.88,128.46,128.43,0.69]
[1765118627076,169.45109645,128.53,128.43,0.69]
[1765118627282,8.46089013,128.52,128.44,27.25007785]
[1765118627472,8.88,128.51,128.44,27.25007785]
[1765118627678,8.88,128.51,128.45,0.69]
[1765118628785,0.68,128.5,128.45,0.69]
[1765118628984,8.88,128.51,128.45,0.69]
[1765118629301,75.2,128.58,128.46,27.24583527]
[1765118629474,8.45786419,128.57,128.46,27.24583527]
[1765118629802,8.80994492,128.55,128.47,0.69]
[1765118630780,8.80994492,128.53,128.47,0.69]
[1765118630977,8.88,128.52,128.47,0.69]
[1765118631383,8.88,128.52,128.48,7.78331257]
[1765118631602,0.69,128.51,128.47,8.4739009]
[1765118631816,8.88,128.52,128.48,0.66]
[1765118632408,9.57,128.52,128.48,0.66]
[1765118633381,9.57,128.52,128.49,7.78270682]
[1765118633701,17.35092863,128.52,128.48,7.78310395]
[1765118634500,9.57,128.52,128.48,7.78310395]
[1765118634811,8.88,128.52,128.49,0.66]
[1765118635012,8.88,128.53,128.49,0.66]
[1765118635190,0.66,128.57,128.49,0.66]
[1765118635396,8.88,128.56,128.49,0.66]
[1765118635618,8.88,128.56,128.5,27.23735407]
[1765118636008,8.88,128.56,128.51,0.68]
[1765118636404,9.54,128.56,128.51,0.68]
[1765118637113,8.88,128.56,128.51,0.68]
[1765118637717,8.88,128.56,128.52,7.78089013]
[1765118638102,8.88,128.56,128.52,8.46089013]
[1765118639221,8.88,128.56,128.53,0.68]
[1765118640025,8.88,128.56,128.52,27.23311546]
[1765118640026,9.54,128.56,128.52,27.23311546]
[1765118640199,9.54,128.56,128.52,8.46089013]
[1765118640403,0.66,128.55,128.52,7.78089013]
[1765118640627,8.80994492,128.54,128.48,19.45769258]
[1765118640803,8.80994492,128.54,128.49,0.68]
[1765118641121,8.88,128.54,128.49,0.68]
[1765118641320,0.2,128.58,128.51,16.308864]
[1765118641515,9.08,128.58,128.52,0.68]
[1765118642025,0.2,128.58,128.52,0.68]
[1765118642933,8.88,128.57,128.53,7.78028475]
[1765118643432,9.54,128.57,128.53,7.78028475]
[1765118643620,8.88,128.57,128.53,7.78028475]
[1765118643826,8.80994492,128.55,128.51,7.78106751]
[1765118644024,8.80994492,128.55,128.49,0.68]
[1765118644025,8.80994492,128.55,128.49,20.1366668]
[1765118644233,9.46994492,128.55,128.49,20.1366668]
[1765118644722,9.46994492,128.55,128.5,7.78163455]
[1765118644927,17.24925676,128.55,128.5,7.78163455]
[1765118645118,8.80994492,128.55,128.51,0.68]
[1765118645318,16.308864,128.56,128.51,0.68]
[1765118645525,16.968864,128.56,128.51,0.68]
[1765118645752,24.94660478,128.58,128.51,0.68]
[1765118645931,16.508864,128.58,128.51,0.68]
[1765118646229,9.08,128.58,128.51,0.68]
[1765118646828,9.08,128.58,128.52,27.23311546]
[1765118647332,9.08,128.58,128.53,0.68]
[1765118648439,9.74,128.58,128.53,0.68]
[1765118648628,9.08,128.58,128.53,0.68]
[1765118648825,0.2,128.58,128.54,27.22887816]
[1765118649243,0.2,128.58,128.55,0.68]
[1765118650118,0.66,128.57,128.54,7.77967947]
[1765118650318,0.86,128.58,128.54,8.45967947]
[1765118650712,0.66,128.57,128.54,7.77967947]
[1765118650913,0.2,128.58,128.54,8.45967947]
[1765118651450,0.2,128.58,128.49,47.77276675]
[1765118651451,8.80994492,128.57,128.5,20.13482115]
[1765118651735,8.86,128.56,128.54,7.77963004]
[1765118652134,8.86,128.56,128.55,0.68]
[1765118652636,8.86,128.56,128.53,7.78005499]
[1765118652933,8.80994492,128.51,128.44,0.68]
[1765118653269,8.80994492,128.49,128.44,0.68]
[1765118653413,8.80994492,128.47,128.42,0.68]
[1765118653612,8.86,128.46,128.42,0.68]
[1765118654338,8.86,128.47,128.42,0.68]
[1765118654525,8.86,128.49,128.42,0.68]
[1765118654726,0.66,128.54,128.43,16.308864]
[1765118655018,8.86,128.53,128.47,16.308864]
[1765118655219,8.80994492,128.55,128.47,16.308864]
[1765118655426,8.86,128.54,128.48,27.92159401]
[1765118655639,9.52,128.54,128.48,27.92159401]
[1765118656540,9.52,128.54,128.5,7.78210116]
[1765118656924,9.52,128.54,128.5,8.46210116]
[1765118657131,8.86,128.54,128.5,8.46210116]
[1765118657339,8.86,128.54,128.51,0.68]
[1765118658923,0.2,128.58,128.52,27.23311546]
[1765118659152,9.06,128.58,128.52,27.23311546]
[1765118659357,9.06,128.58,128.53,0.68]
[1765118660650,0.71,128.57,128.52,27.23311546]
[1765118661161,9.06,128.58,128.53,0.67]
[1765118661928,9.77,128.58,128.53,0.67]
[1765118662456,9.77,128.58,128.54,7.77967947]
[1765118663264,9.51994492,128.57,128.53,7.78010757]
[1765118663436,9.51994492,128.57,128.53,8.45010757]
[1765118663631,9.06,128.58,128.54,0.67]
[1765118664232,9.77,128.58,128.54,0.67]
[1765118664838,17.54741261,128.58,128.52,0.67]
[1765118665156,17.54741261,128.58,128.51,0.67]
[1765118665355,9.06,128.58,128.51,0.67]
[1765118666249,9.77,128.58,128.51,0.67]
[1765118666941,9.77,128.58,128.52,27.23311546]
[1765118667448,9.77,128.58,128.53,0.67]
[1765118667626,0.2,128.58,128.53,0.67]
[1765118668158,0.2,128.58,128.55,16.308864]
[1765118668656,0.2,128.58,128.56,0.67]
[1765118669151,0.2,128.58,128.57,7.77786419]
[1765118669552,0.2,128.58,128.57,8.44786419]
[1765118673139,0.2,128.58,128.57,7.77786419]
[1765118673337,0.2,128.58,128.57,8.44786419]
[1765118679559,1e-08,128.58,128.57,17.28786419]
[1765118679761,1e-08,128.58,128.57,8.44786419]
[1765118680344,1e-08,128.58,128.57,17.28786419]
[1765118683066,1e-08,128.6,128.58,0.67]
[1765118683673,0.71,128.64,128.58,0.67]
[1765118684868,0.71,128.64,128.59,27.21829068]
[1765118685070,8.80994492,128.63,128.59,7.77665448]
[1765118685255,0.71,128.62,128.59,7.77665448]
[1765118685971,0.71,128.62,128.57,27.22190928]
[1765118686175,8.48503394,128.62,128.57,27.22190928]
[1765118686338,8.80994492,128.61,128.57,27.22190928]
[1765118686538,0.71,128.61,128.57,27.89190928]
[1765118686757,0.71,128.6,128.57,7.77786419]
[1765118687255,0.71,128.6,128.56,7.77835352]